fUST/lending_fUST_20250603
["ID","MTS","AMOUNT","RATE_DAILY","PERIOD"]
[364013684,1748959847796,-666.66,0.00023532,2]
[364013685,1748959847806,-666.66,0.00023806,2]
[364013687,1748959847816,-2440722.13543568,0.0002412,20]
[364013688,1748959847827,-9181.90000002,0.0002412,20]
[364014664,1748959903664,19903.0,0.00024657,120]
[364014729,1748959935160,500.0,0.00024658,120]
[364014870,1748959941855,500.0,0.00024658,120]
[364015528,1748959948681,500.0,0.00024658,120]
[364016001,1748959955111,500.0,0.00024658,120]
[364016909,1748959964355,500.0,0.00024658,120]
[364017102,1748959972736,500.0,0.00024658,120]
[364017108,1748959981985,500.0,0.00024658,120]
[364017109,1748959989291,500.0,0.00024658,120]
[364017110,1748959996323,500.0,0.00024658,120]
[364017111,1748960002718,500.0,0.00024658,120]
[364017112,1748960010885,500.0,0.00024658,120]
[364017114,1748960017498,500.0,0.00024658,120]
[364017115,1748960024360,1603.46102,0.00024658,120]
[364017116,1748960025880,500.0,0.00024658,120]
[364017117,1748960032903,500.0,0.00024658,120]
[364017118,1748960040933,500.0,0.00024658,120]
[364017119,1748960048875,500.0,0.00024658,120]
[364017120,1748960057893,500.0,0.00024658,120]
[364017121,1748960064799,500.0,0.00024658,120]
[364017122,1748960071702,500.0,0.00024658,120]
[364017123,1748960079329,500.0,0.00024658,120]
[364017124,1748960085839,500.0,0.00024658,120]
[364017125,1748960093503,500.0,0.00024658,120]
[364017126,1748960101044,500.0,0.00024658,120]
[364017127,1748960108660,500.0,0.00024658,120]
[364017128,1748960115949,500.0,0.00024658,120]
[364017129,1748960122588,500.0,0.00024658,120]
[364017131,1748960131151,500.0,0.00024658,120]
[364017132,1748960138425,500.0,0.00024658,120]
[364017133,1748960147286,500.0,0.00024658,120]
[364017134,1748960155645,500.0,0.00024658,120]
[364017135,1748960166557,500.0,0.00024658,120]
[364017136,1748960174975,500.0,0.00024658,120]
[364017137,1748960181713,500.0,0.00024658,120]
[364017138,1748960213507,272.38854,0.00024658,120]
[364017157,1748960499923,660.0,0.00024,120]
[364017158,1748960559925,500.0,0.00024658,120]
[364017171,1748960740181,230.04,0.00021918,60]
[364017180,1748960789437,104.06869307,0.00013699,2]
[364017181,1748960789468,69.76045593,0.00013699,2]
[364017183,1748960869931,180.59437197,0.000246,120]
[364017184,1748960906849,1628.56366105,0.00015,2]
[364017204,1748960918214,1789.49173638,0.00024,120]
[364017298,1748960923623,217.65071664,0.0001536,120]
[364017313,1748960924429,354.05618846,0.00015,5]
[364019172,1748961037991,-1058.3,0.00016659,2]
[364019176,1748961038136,-3941.7,0.00016659,2]
[364019177,1748961038146,-440.0,0.00017199,2]
[364019178,1748961038157,-440.0,0.00017199,2]
[364019179,1748961038167,-440.0,0.00017199,2]
[364019180,1748961038176,-430.0,0.00017199,2]
[364019182,1748961038186,-430.0,0.00017199,2]
[364019183,1748961038195,-24900.0,0.000172,2]
[364019184,1748961038204,-157.0,0.00017342,3]
[364019185,1748961038214,-172.13469371,0.00017413,2]
[364019186,1748961038224,-440.0,0.00017473,2]
[364019187,1748961038233,-440.0,0.00017473,2]
[364019189,1748961038243,-412.43246041,0.00017473,2]
[364019190,1748961038254,-168.24430447,0.00017513,2]
[364019191,1748961038264,-440.0,0.00017747,2]
[364019192,1748961038274,-440.0,0.00017747,2]
[364019193,1748961038285,-264.87012207,0.000179,2]
[364019194,1748961038296,-440.0,0.00018021,2]
[364019196,1748961038309,-440.0,0.00018021,2]
[364019197,1748961038319,-1901.0374758,0.00018054,2]
[364019198,1748961038329,-440.0,0.00018054,2]
[364019199,1748961038338,-430.0,0.00018054,2]
[364019200,1748961038348,-430.0,0.00018054,2]
[364019204,1748961038533,-562.57,0.00018054,2]
[364019205,1748961038543,-430.0,0.00018054,2]
[364019207,1748961038553,-184.81751953,0.00018054,2]
[364019208,1748961038563,-394.46,0.00018054,2]
[364019209,1748961038573,-177.68,0.00018054,2]
[364019210,1748961038582,-430.0,0.00018054,2]
[364019211,1748961038592,-440.0,0.00018054,2]
[364019212,1748961038601,-430.0,0.00018054,2]
[364019214,1748961038610,-430.0,0.00018054,2]
[364019215,1748961038620,-313.21211109,0.00018054,2]
[364019216,1748961038630,-430.0,0.00018054,2]
[364019217,1748961038640,-412.00635979,0.00018054,2]
[364019218,1748961038650,-430.0,0.00018054,2]
[364019219,1748961038665,-216.29364021,0.00018054,2]
[364019221,1748961038679,-481.95315985,0.00018054,2]
[364019222,1748961038689,-430.0,0.00018054,2]
[364019223,1748961038698,-430.0,0.00018054,2]
[364019224,1748961038708,-484.32761816,0.00018054,2]
[364019225,1748961038720,-430.0,0.00018054,2]
[364019226,1748961038729,-423.63107087,0.00018055,2]
[364019228,1748961038739,-160.0,0.00018055,2]
[364019229,1748961038749,-12635.31997172,0.00018055,10]
[364019230,1748961038760,-264.87012191,0.00018141,2]
[364019231,1748961038771,-440.0,0.00018295,2]
[364019232,1748961038781,-440.0,0.00018295,2]
[364019233,1748961038791,-188.49663862,0.00018326,2]
[364019235,1748961038801,-158.3229287,0.00018326,2]
[364019236,1748961038812,-674.53,0.00018326,2]
[364019237,1748961038822,-440.0,0.00018328,2]
[364019238,1748961038832,-440.0,0.00018328,2]
[364019239,1748961038842,-264.87012191,0.00018383,2]
[364019241,1748961038852,-440.0,0.00018569,2]
[364019242,1748961038862,-440.0,0.00018569,2]
[364019243,1748961038872,-430.0,0.0001859,2]
[364019244,1748961038882,-674.53,0.000186,2]
[364019245,1748961038892,-440.0,0.00018602,2]
[364019246,1748961038901,-516.76,0.00018602,2]
[364019248,1748961038911,-264.87012191,0.00018624,2]
[364019249,1748961038920,-172.13469367,0.00018732,2]
[364019250,1748961038931,-440.0,0.00018843,2]
[364019251,1748961038941,-440.0,0.00018843,2]
[364019252,1748961038952,-264.87012191,0.00018866,2]
[364019253,1748961038962,-674.53,0.00018874,2]
[364019255,1748961038972,-440.0,0.00018876,2]
[364019256,1748961038982,-264.87012191,0.00019107,2]
[364019257,1748961038991,-440.0,0.00019117,2]
[364019258,1748961039001,-440.0,0.00019117,2]
[364019259,1748961039012,-674.53,0.00019148,2]
[364019260,1748961039021,-240.14,0.0001915,2]
[364019262,1748961039030,-440.0,0.00019391,2]
[364019263,1748961039040,-440.0,0.00019391,2]
[364019264,1748961039049,-674.53,0.00019422,2]
[364019265,1748961039059,-440.0,0.00019665,2]
[364019266,1748961039068,-440.0,0.00019665,2]
[364019267,1748961039078,-674.53,0.00019696,2]
[364019269,1748961039091,-209.58,0.00019766,2]
[364019270,1748961039101,-440.0,0.00019939,2]
[364019271,1748961039111,-330.0,0.00019939,2]
[364019272,1748961039120,-151.0,0.0001996,2]
[364019273,1748961039131,-674.53,0.0001997,2]
[364019274,1748961039141,-160.0,0.00019989,2]
[364019275,1748961039151,-229.42821335,0.00019989,2]
[364019277,1748961039162,-160.0,0.00019989,2]
[364019278,1748961039171,-555.17,0.0001999,3]
[364019279,1748961039180,-429.23876083,0.00019999,2]
[364019280,1748961039190,-500.0,0.00019999,2]
[364019281,1748961039199,-177331.89925539,0.0002,15]
[364019282,1748961039209,-172.13469367,0.00020051,2]
[364019284,1748961039218,-173.829149,0.00020187,2]
[364019285,1748961039228,-440.0,0.00020213,2]
[364019286,1748961039237,-674.53,0.00020244,2]
[364019287,1748961039247,-207.4,0.000204,2]
[364019288,1748961039257,-453.49,0.00020487,2]
[364019289,1748961039267,-674.53,0.00020518,2]
[364019291,1748961039277,-2524.44,0.000206,2]
[364019292,1748961039286,-674.53,0.00020792,2]
[364019293,1748961039296,-674.53,0.00021066,2]
[364019294,1748961039305,-674.53,0.0002134,2]
[364019295,1748961039314,-172.13469367,0.00021369,2]
[364019296,1748961039324,-674.53,0.00021614,2]
[364019298,1748961039334,-215.0738,0.00021769,2]
[364019299,1748961039343,-674.53,0.00021888,2]
[364019300,1748961039353,-150.0,0.00021918,2]
[364019301,1748961039362,-139896.7313495,0.00022,15]
[364019302,1748961039371,-1372.82,0.00022,2]
[364019303,1748961039381,-674.53,0.00022162,2]
[364019304,1748961039390,-2524.44,0.000222,7]
[364019306,1748961039400,-674.53,0.00022436,2]
[364019307,1748961039409,-962.0,0.00022501,2]
[364019308,1748961039419,-405.0,0.00022501,2]
[364019309,1748961039429,-709.0,0.00022501,2]
[364019310,1748961039439,-2225.0,0.00022501,2]
[364019311,1748961039448,-704.59612248,0.00022558,2]
[364019313,1748961039458,-32789.94587795,0.0002266,2]
[364019314,1748961039468,-172.13469367,0.00022688,2]
[364019316,1748961039478,-674.53,0.0002271,2]
[364019317,1748961039487,-999.999999,0.00022712,7]
[364019318,1748961039498,-510.45975574,0.00022784,5]
[364019319,1748961039509,-674.53,0.00022984,2]
[364019320,1748961039521,-2200.0,0.00023036,2]
[364019322,1748961039530,-200.0,0.0002308,7]
[364019323,1748961039541,-223.0315306,0.00023138,2]
[364019324,1748961039551,-674.53,0.00023258,2]
[364019325,1748961039560,-13546.07279646,0.000235,2]
[364019326,1748961039571,-674.53,0.00023532,2]
[364019327,1748961039581,-2524.44,0.000236,7]
[364019329,1748961039591,-1552.541127,0.00023626,3]
[364019330,1748961039601,-25000.0,0.0002366,2]
[364019331,1748961039611,-2000.0,0.000238,2]
[364019333,1748961039620,-2000.0,0.000238,2]
[364019335,1748961039631,-2573.91371224,0.000238,7]
[364019336,1748961039641,-168.63,0.000238,31]
[364019337,1748961039650,-168.63,0.000238,31]
[364019339,1748961039660,-168.63,0.000238,31]
[364019340,1748961039670,-168.63,0.000238,31]
[364019341,1748961039680,-168.63,0.000238,31]
[364019342,1748961039690,-168.63,0.000238,31]
[364019343,1748961039701,-168.63,0.000238,31]
[364019344,1748961039711,-168.63,0.000238,31]
[364019346,1748961039721,-168.63,0.000238,31]
[364019347,1748961039730,-168.63,0.000238,31]
[364019348,1748961039740,-168.63,0.000238,31]
[364019349,1748961039750,-168.63,0.000238,31]
[364019350,1748961039760,-168.63,0.000238,31]
[364019351,1748961039771,-168.63,0.000238,31]
[364019353,1748961039780,-168.63,0.000238,31]
[364019354,1748961039790,-168.63,0.000238,31]
[364019355,1748961039800,-674.53,0.00023806,2]
[364019356,1748961039810,-682.27,0.00023832,6]
[364019357,1748961039821,-155.56071019,0.00024,2]
[364019358,1748961039830,-2000.0,0.00024,2]
[364019360,1748961039840,-42501.0,0.00024,2]
[364019361,1748961039850,-40954.0,0.00024,2]
[364019362,1748961039860,-158.14,0.00024,2]
[364019363,1748961039870,-150.0,0.00024,5]
[364019364,1748961039879,-160.0,0.00024,10]
[364019365,1748961039889,-1682.61960832,0.00024,2]
[364019367,1748961039900,-151.0,0.00024,14]
[364019368,1748961039910,-10085.59339964,0.00024,2]
[364019369,1748961039920,-229.42821335,0.00024,10]
[364019370,1748961039930,-423.63107087,0.00024,10]
[364019371,1748961039940,-9053.54715602,0.00024005,2]
[364019372,1748961039951,-9053.54715602,0.00024006,2]
[364019374,1748961039962,-9053.54715602,0.00024007,2]
[364019375,1748961039971,-6899.50677586,0.00024007,2]
[364019376,1748961039981,-172.13469367,0.00024007,2]
[364019377,1748961039990,-500.0,0.00024019,2]
[364019378,1748961040000,-682.27,0.00024032,7]
[364019379,1748961040012,-674.53,0.0002408,2]
[364019380,1748961040022,-1199651.625541,0.00024099,2]
[364019382,1748961040031,-292.8,0.000241,2]
[364019383,1748961040041,-151.0,0.00024105,7]
[364019384,1748961040050,-151.0,0.00024105,7]
[364019385,1748961040061,-151.0,0.00024105,7]
[364019386,1748961040071,-163.069246,0.00024105,7]
[364019387,1748961040081,-151.0,0.00024105,7]
[364019389,1748961040092,-151.0,0.00024105,7]
[364019390,1748961040102,-151.0,0.00024105,7]
[364019391,1748961040111,-151.0,0.00024105,7]
[364019392,1748961040121,-151.0,0.00024105,7]
[364019393,1748961040132,-151.0,0.00024105,7]
[364019394,1748961040141,-151.0,0.00024105,7]
[364019396,1748961040150,-151.0,0.00024105,7]
[364019397,1748961040161,-151.0,0.00024105,7]
[364019398,1748961040171,-151.0,0.00024105,7]
[364019399,1748961040180,-241.02344,0.00024105,7]
[364019400,1748961040190,-151.0,0.00024105,7]
[364019401,1748961040200,-151.0,0.00024105,7]
[364019402,1748961040209,-151.0,0.00024105,7]
[364019404,1748961040218,-151.0,0.00024105,7]
[364019405,1748961040228,-151.0,0.00024105,7]
[364019406,1748961040238,-151.0,0.00024105,7]
[364019407,1748961040248,-151.0,0.00024105,7]
[364019408,1748961040258,-151.0,0.00024105,7]
[364019409,1748961040270,-151.0,0.00024105,7]
[364019411,1748961040279,-151.0,0.00024105,7]
[364019412,1748961040289,-151.0,0.00024105,7]
[364019413,1748961040299,-151.0,0.00024105,7]
[364019414,1748961040309,-222.643592,0.00024105,7]
[364019415,1748961040319,-151.654972,0.00024105,7]
[364019416,1748961040329,-200.0,0.00024105,10]
[364019418,1748961040339,-200.0,0.00024105,10]
[364019419,1748961040349,-200.0,0.00024105,10]
[364019420,1748961040359,-200.0,0.00024105,10]
[364019421,1748961040369,-200.0,0.00024105,10]
[364019422,1748961040379,-200.0,0.00024105,10]
[364019423,1748961040389,-200.0,0.00024105,10]
[364019425,1748961040399,-200.0,0.00024105,10]
[364019426,1748961040409,-200.0,0.00024105,10]
[364019427,1748961040419,-200.0,0.00024105,10]
[364019428,1748961040429,-200.0,0.00024105,10]
[364019429,1748961040438,-200.0,0.00024105,10]
[364019430,1748961040448,-200.0,0.00024105,10]
[364019431,1748961040458,-200.0,0.00024105,10]
[364019433,1748961040467,-200.0,0.00024105,10]
[364019434,1748961040477,-200.0,0.00024105,10]
[364019435,1748961040487,-200.0,0.00024105,10]
[364019436,1748961040496,-200.0,0.00024105,10]
[364019437,1748961040506,-200.0,0.00024105,10]
[364019438,1748961040517,-200.0,0.00024105,10]
[364019440,1748961040527,-200.0,0.00024105,10]
[364019441,1748961040536,-200.0,0.00024105,10]
[364019442,1748961040546,-200.0,0.00024105,10]
[364019443,1748961040556,-200.0,0.00024105,10]
[364019444,1748961040566,-200.0,0.00024105,10]
[364019445,1748961040576,-200.0,0.00024105,10]
[364019446,1748961040586,-200.0,0.00024105,10]
[364019448,1748961040596,-200.0,0.00024105,10]
[364019449,1748961040606,-200.0,0.00024105,10]
[364019450,1748961040615,-200.0,0.00024105,10]
[364019451,1748961040626,-200.0,0.00024105,10]
[364019452,1748961040636,-200.0,0.00024105,10]
[364019453,1748961040646,-200.0,0.00024105,10]
[364019455,1748961040656,-200.0,0.00024105,10]
[364019456,1748961040666,-200.0,0.00024105,10]
[364019457,1748961040676,-200.0,0.00024105,10]
[364019458,1748961040685,-200.0,0.00024105,10]
[364019459,1748961040695,-200.0,0.00024105,10]
[364019460,1748961040705,-200.0,0.00024105,10]
[364019462,1748961040715,-200.0,0.00024105,10]
[364019463,1748961040725,-200.0,0.00024105,10]
[364019464,1748961040735,-200.0,0.00024105,10]
[364019465,1748961040745,-200.0,0.00024105,10]
[364019466,1748961040755,-200.0,0.00024105,10]
[364019467,1748961040767,-200.0,0.00024105,10]
[364019469,1748961040777,-200.0,0.00024105,10]
[364019470,1748961040787,-200.0,0.00024105,10]
[364019471,1748961040797,-200.0,0.00024105,10]
[364019472,1748961040807,-200.0,0.00024105,10]
[364019473,1748961040817,-200.0,0.00024105,10]
[364019474,1748961040827,-200.0,0.00024105,10]
[364019475,1748961040837,-200.0,0.00024105,10]
[364019477,1748961040847,-200.0,0.00024105,10]
[364019478,1748961040858,-200.0,0.00024105,10]
[364019479,1748961040868,-200.0,0.00024105,10]
[364019480,1748961040879,-200.0,0.00024105,10]
[364019481,1748961040889,-200.0,0.00024105,10]
[364019482,1748961040898,-200.0,0.00024105,10]
[364019484,1748961040908,-200.0,0.00024105,10]
[364019485,1748961040918,-200.0,0.00024105,10]
[364019486,1748961040928,-200.0,0.00024105,10]
[364019487,1748961040938,-200.0,0.00024105,10]
[364019488,1748961040948,-200.0,0.00024105,10]
[364019489,1748961040959,-200.0,0.00024105,10]
[364019490,1748961040969,-200.0,0.00024105,10]
[364019492,1748961040979,-200.0,0.00024105,10]
[364019493,1748961040989,-200.0,0.00024105,10]
[364019494,1748961040999,-200.0,0.00024105,10]
[364019495,1748961041008,-200.0,0.00024105,10]
[364019496,1748961041020,-200.0,0.00024105,10]
[364019497,1748961041029,-200.0,0.00024105,10]
[364019499,1748961041040,-288.959645,0.00024105,10]
[364019500,1748961041050,-158.14,0.00024105,2]
[364019501,1748961041060,-500.0,0.00024106,2]
[364019502,1748961041070,-561.9670738,0.00024106,2]
[364019503,1748961041084,-500.0,0.00024106,2]
[364019505,1748961041094,-500.0,0.00024106,2]
[364019506,1748961041103,-500.0,0.00024106,2]
[364019507,1748961041113,-500.0,0.00024106,2]
[364019508,1748961041123,-46094.99192329,0.00024107,2]
[364019509,1748961041133,-25636.59528815,0.00024107,3]
[364019510,1748961041145,-151.0,0.00024107,7]
[364019511,1748961041158,-151.0,0.00024107,7]
[364019513,1748961041168,-151.0,0.00024107,7]
[364019514,1748961041178,-151.0,0.00024107,7]
[364019515,1748961041187,-151.0,0.00024107,7]
[364019516,1748961041197,-151.0,0.00024107,7]
[364019517,1748961041207,-158.317566,0.00024107,7]
[364019518,1748961041218,-151.0,0.00024107,7]
[364019520,1748961041230,-151.0,0.00024107,7]
[364019521,1748961041240,-151.0,0.00024107,7]
[364019522,1748961041250,-151.0,0.00024107,7]
[364019523,1748961041260,-151.0,0.00024107,7]
[364019524,1748961041270,-151.0,0.00024107,7]
[364019525,1748961041280,-151.0,0.00024107,7]
[364019527,1748961041289,-151.0,0.00024107,7]
[364019528,1748961041299,-151.0,0.00024107,7]
[364019529,1748961041309,-151.0,0.00024107,7]
[364019530,1748961041318,-151.0,0.00024107,7]
[364019531,1748961041327,-151.0,0.00024107,7]
[364019532,1748961041337,-151.0,0.00024107,7]
[364019534,1748961041347,-151.0,0.00024107,7]
[364019535,1748961041356,-151.0,0.00024107,7]
[364019536,1748961041368,-230.893799,0.00024107,7]
[364019537,1748961041379,-151.0,0.00024107,7]
[364019538,1748961041388,-151.0,0.00024107,7]
[364019539,1748961041399,-151.0,0.00024107,7]
[364019541,1748961041410,-151.0,0.00024107,7]
[364019542,1748961041419,-151.0,0.00024107,7]
[364019543,1748961041429,-151.0,0.00024107,7]
[364019544,1748961041439,-151.0,0.00024107,7]
[364019545,1748961041449,-151.0,0.00024107,7]
[364019546,1748961041458,-151.0,0.00024107,7]
[364019547,1748961041468,-151.0,0.00024107,7]
[364019549,1748961041477,-151.0,0.00024107,7]
[364019550,1748961041487,-151.0,0.00024107,7]
[364019551,1748961041496,-151.0,0.00024107,7]
[364019552,1748961041507,-151.0,0.00024107,7]
[364019553,1748961041517,-151.0,0.00024107,7]
[364019554,1748961041527,-151.0,0.00024107,7]
[364019556,1748961041536,-198.516892,0.00024107,7]
[364019557,1748961041547,-2024643.35401135,0.00024107,20]
[364019558,1748961041562,-9837.16085619,0.00024107,20]
[364019563,1748961041809,-264.87012191,0.00019348,2]
[364019564,1748961041819,-264.87012191,0.0001959,2]
[364019565,1748961041830,-264.87012191,0.00019831,2]
[364019567,1748961041840,-264.87012191,0.00020072,2]
[364019568,1748961041851,-264.87012191,0.00020314,3]
[364019569,1748961041862,-264.87012191,0.00020555,3]
[364019570,1748961041873,-264.87012191,0.00020797,4]
[364019571,1748961041884,-264.87012191,0.00021038,4]
[364019572,1748961041895,-748.65664567,0.00024107,20]
[364019596,1748961043009,-264.87012191,0.00021279,5]
[364019597,1748961043024,-264.87012191,0.00021521,5]
[364019599,1748961043035,-264.87012191,0.00021762,5]
[364019600,1748961043045,-264.87012191,0.00022003,6]
[364019601,1748961043054,-264.87012191,0.00022245,6]
[364019602,1748961043064,-264.87012191,0.00022486,7]
[364019603,1748961043075,-264.87012191,0.00022728,7]
[364019604,1748961043086,-15784.54024075,0.00024107,20]
[364019606,1748961043099,-17424.4752048,0.00024107,20]
[364019764,1748961046523,-264.87012191,0.00022969,8]
[364019766,1748961046533,-225.79184836,0.0002321,8]
[364019768,1748961046547,-39.07827355,0.0002321,8]
[364019770,1748961046557,-264.87012191,0.00023452,9]
[364019772,1748961046567,-264.87012191,0.00023693,9]
[364019775,1748961046576,-264.87012191,0.00023934,10]
[364019777,1748961046586,-545.64939045,0.00024107,2]
[364021357,1748961302716,824.89001809,0.0002465,120]
[364021359,1748961354333,150.0,0.0002465,120]
[364021361,1748961790432,32641.31916824,0.00016,2]
[364021362,1748961790456,32816.68083176,0.00016,2]
[364021364,1748961852776,1109.56630597,0.00024658,120]
[364021365,1748961868757,164.680246,0.00013699,2]
[364021367,1748961884339,1109.56630597,0.00024658,120]
[364021368,1748961903227,1161.3,0.00022,120]
[364021369,1748961909960,500.0,0.0002312,120]
[364021370,1748961911180,500.0,0.0002312,120]
[364021371,1748961911992,500.0,0.0002312,120]
[364021372,1748961912801,500.0,0.0002312,120]
[364021373,1748961913588,500.0,0.0002312,120]
[364021374,1748961914364,500.0,0.0002312,120]
[364021375,1748961915154,500.0,0.0002312,120]
[364021376,1748961915959,500.0,0.0002312,120]
[364021377,1748961916754,500.0,0.0002312,120]
[364021378,1748961917554,500.0,0.0002312,120]
[364021379,1748961918352,500.0,0.0002312,120]
[364021380,1748961919239,500.0,0.0002312,120]
[364021381,1748961920036,500.0,0.0002312,120]
[364021382,1748961920822,500.0,0.0002312,120]
[364021383,1748961921692,500.0,0.0002312,120]
[364021384,1748961922404,500.0,0.0002312,120]
[364021385,1748961923196,500.0,0.0002312,120]
[364021386,1748961923965,500.0,0.0002312,120]
[364021387,1748961924740,500.0,0.0002312,120]
[364021388,1748961925528,500.0,0.0002312,120]
[364021389,1748961926306,500.0,0.0002312,120]
[364021390,1748961927082,500.0,0.0002312,120]
[364021391,1748961927883,500.0,0.0002312,120]
[364021392,1748961928688,500.0,0.0002312,120]
[364021393,1748961929553,500.0,0.0002312,120]
[364021394,1748961930350,500.0,0.0002312,120]
[364021395,1748961931129,500.0,0.0002312,120]
[364021396,1748961931991,500.0,0.0002312,120]
[364021397,1748961932765,150.5,0.00024092,120]
[364021398,1748961932907,500.0,0.0002312,120]
[364021399,1748961933289,150.5,0.00024082,120]
[364021400,1748961933744,500.0,0.0002312,120]
[364021401,1748961933876,279.95,0.00024072,120]
[364021402,1748961934533,500.0,0.0002312,120]
[364021403,1748961935309,500.0,0.0002312,120]
[364021404,1748961936138,500.0,0.0002312,120]
[364021405,1748961936965,500.0,0.0002312,120]
[364021406,1748961937748,500.0,0.0002312,120]
[364021407,1748961938537,500.0,0.0002312,120]
[364021408,1748961939454,500.0,0.0002312,120]
[364021409,1748961940232,500.0,0.0002312,120]
[364021410,1748961941011,500.0,0.0002312,120]
[364021411,1748961941798,500.0,0.0002312,120]
[364021412,1748961942597,500.0,0.0002312,120]
[364021413,1748961943613,500.0,0.0002312,120]
[364021414,1748961944427,500.0,0.0002312,120]
[364021415,1748961945211,500.0,0.0002312,120]
[364021416,1748961945995,500.0,0.0002312,120]
[364021417,1748961946767,500.0,0.0002312,120]
[364021418,1748961947556,293.27,0.0002312,120]
[364021421,1748962032249,1000.0,0.00024658,120]
[364021422,1748962038747,1000.0,0.00024658,120]
[364021439,1748962045371,1000.0,0.00024658,120]
[364021442,1748962051840,1000.0,0.00024658,120]
[364021483,1748962058186,1000.0,0.00024658,120]
[364021484,1748962068930,1000.0,0.00024658,120]
[364021485,1748962081423,1000.0,0.00024658,120]
[364021486,1748962092045,1000.0,0.00024658,120]
[364021487,1748962101579,1000.0,0.00024658,120]
[364021488,1748962108375,1000.0,0.00024658,120]
[364021489,1748962115479,1000.0,0.00024658,120]
[364021490,1748962121824,1000.0,0.00024658,120]
[364021491,1748962128673,1000.0,0.00024658,120]
[364021492,1748962134992,1000.0,0.00024658,120]
[364021493,1748962145006,1000.0,0.00024658,120]
[364021504,1748962158301,1000.0,0.00024658,120]
[364021517,1748962176554,772.38854,0.00024658,120]
[364021518,1748962179828,10000.0,0.00024658,120]
[364021521,1748962224375,10000.0,0.00024658,120]
[364021544,1748962232232,-5000.0,0.0001635,2]
[364021545,1748962232242,-228.679437,0.00016515,2]
[364021547,1748962232252,-197.52575828,0.00016683,2]
[364021549,1748962232261,-1200.0,0.00017196,2]
[364021551,1748962232271,-300.0,0.00017197,2]
[364021553,1748962232281,-300.0,0.00017197,2]
[364021555,1748962232290,-300.0,0.00017197,2]
[364021557,1748962232300,-300.0,0.00017197,2]
[364021559,1748962232309,-279.81707232,0.00017197,2]
[364021561,1748962232321,-20.18292768,0.00017197,2]
[364021563,1748962232331,-182.41069151,0.00017199,2]
[364021566,1748962232341,-226.46952972,0.00017199,2]
[364021568,1748962232351,-440.0,0.00017199,2]
[364021570,1748962232361,-430.0,0.00017199,2]
[364021572,1748962232371,-440.0,0.00017199,2]
[364021574,1748962232380,-430.0,0.00017199,2]
[364021576,1748962232390,-440.0,0.00017199,2]
[364021578,1748962232399,-430.0,0.00017199,2]
[364021580,1748962232408,-430.0,0.00017199,2]
[364021582,1748962232418,-430.0,0.00017199,2]
[364021584,1748962232430,-430.0,0.00017199,2]
[364021586,1748962232440,-168.0,0.00017315,3]